[Event "Titled Tuesday Blitz March 08 Late 2022"]
[White "Cupid, Kevin"]
[Black "Burke, Paul"]
[WhiteFideId "7700512"]
[BlackFideId "2605767"]
[WhiteElo "2096"]
[BlackElo "1907"]
[Result "1-0"]
[Round "10"]
[TimeControl "180+1"]
[Date "2022.03.09"]
[WhiteClock "0:00:07"]
[BlackClock "0:00:01"]

1. d4 {[%clk 0:02:51]}  Nf6 {[%clk 0:02:58]} 2. c4 {[%clk 0:02:51]}  c5 {[%clk 0:02:58]} 3. dxc5 {[%clk 0:02:50]}  Qa5+ {[%clk 0:02:57]} 4. Nd2 {[%clk 0:02:46]}  Qxc5 {[%clk 0:02:56]} 5. Ngf3 {[%clk 0:02:46]}  d6 {[%clk 0:02:55]} 6. a3 {[%clk 0:02:30]}  Qc7 {[%clk 0:02:53]} 7. e3 {[%clk 0:02:24]}  e6 {[%clk 0:02:53]} 8. b3 {[%clk 0:02:24]}  Be7 {[%clk 0:02:53]} 9. Bb2 {[%clk 0:02:24]}  O-O {[%clk 0:02:52]} 10. Rc1 {[%clk 0:02:24]}  b6 {[%clk 0:02:50]} 11. Bd3 {[%clk 0:02:23]}  Bb7 {[%clk 0:02:49]} 12. O-O {[%clk 0:02:24]}  Nbd7 {[%clk 0:02:48]} 13. Nd4 {[%clk 0:02:20]}  Rac8 {[%clk 0:02:41]} 14. Qe2 {[%clk 0:02:11]}  Qb8 {[%clk 0:02:40]} 15. f4 {[%clk 0:02:05]}  d5 {[%clk 0:02:29]} 16. Bb1 {[%clk 0:02:01]}  dxc4 {[%clk 0:02:26]} 17. Nxc4 {[%clk 0:02:01]}  Ne4 {[%clk 0:02:17]} 18. b4 {[%clk 0:01:27]}  Ndf6 {[%clk 0:02:12]} 19. Nf3 {[%clk 0:01:12]}  Rfd8 {[%clk 0:02:00]} 20. Nfe5 {[%clk 0:01:09]}  b5 {[%clk 0:01:53]} 21. Nxf7 {[%clk 0:00:58]}  Kxf7 {[%clk 0:01:49]} 22. Ne5+ {[%clk 0:00:57]}  Kg8 {[%clk 0:01:48]} 23. Qxb5 {[%clk 0:00:53]}  Bd5 {[%clk 0:01:35]} 24. Qa6 {[%clk 0:00:45]}  Qb6 {[%clk 0:01:21]} 25. Qxb6 {[%clk 0:00:43]}  axb6 {[%clk 0:01:21]} 26. Bd4 {[%clk 0:00:42]}  Bc4 {[%clk 0:01:13]} 27. Rxc4 {[%clk 0:00:39]}  Rxc4 {[%clk 0:01:10]} 28. Nxc4 {[%clk 0:00:40]}  b5 {[%clk 0:01:07]} 29. Bxe4 {[%clk 0:00:35]}  Nxe4 {[%clk 0:00:59]} 30. Ne5 {[%clk 0:00:34]}  Rc8 {[%clk 0:00:57]} 31. Ra1 {[%clk 0:00:20]}  Rc2 {[%clk 0:00:55]} 32. Nd3 {[%clk 0:00:19]}  Nd6 {[%clk 0:00:43]} 33. Bc5 {[%clk 0:00:19]}  Rc3 {[%clk 0:00:37]} 34. Ne5 {[%clk 0:00:18]}  Nc8 {[%clk 0:00:35]} 35. Bd4 {[%clk 0:00:16]}  Rc2 {[%clk 0:00:34]} 36. Nd3 {[%clk 0:00:16]}  Rd2 {[%clk 0:00:30]} 37. Rc1 {[%clk 0:00:14]}  Nd6 {[%clk 0:00:29]} 38. Nc5 {[%clk 0:00:13]}  Ra2 {[%clk 0:00:26]} 39. Nxe6 {[%clk 0:00:13]}  Kf7 {[%clk 0:00:24]} 40. Ng5+ {[%clk 0:00:10]}  Bxg5 {[%clk 0:00:23]} 41. fxg5 {[%clk 0:00:11]}  Rxa3 {[%clk 0:00:23]} 42. Rc7+ {[%clk 0:00:11]}  Ke6 {[%clk 0:00:20]} 43. Rxg7 {[%clk 0:00:11]}  Nf5 {[%clk 0:00:20]} 44. Rxh7 {[%clk 0:00:10]}  Nxd4 {[%clk 0:00:20]} 45. exd4 {[%clk 0:00:10]}  Rb3 {[%clk 0:00:19]} 46. g6 {[%clk 0:00:10]}  Kf6 {[%clk 0:00:18]} 47. g7 {[%clk 0:00:09]}  Kf7 {[%clk 0:00:18]} 48. g8=Q+ {[%clk 0:00:08]}  Kxg8 {[%clk 0:00:17]} 49. Rd7 {[%clk 0:00:08]}  Rxb4 {[%clk 0:00:17]} 50. Kf2 {[%clk 0:00:08]}  Rb2+ {[%clk 0:00:16]} 51. Kf3 {[%clk 0:00:08]}  b4 {[%clk 0:00:15]} 52. Rb7 {[%clk 0:00:08]}  b3 {[%clk 0:00:15]} 53. h4 {[%clk 0:00:08]}  Rb1 {[%clk 0:00:15]} 54. Kg3 {[%clk 0:00:09]}  b2 {[%clk 0:00:15]} 55. d5 {[%clk 0:00:09]}  Kf8 {[%clk 0:00:15]} 56. h5 {[%clk 0:00:09]}  Rd1 {[%clk 0:00:14]} 57. Rxb2 {[%clk 0:00:09]}  Rxd5 {[%clk 0:00:14]} 58. Kh4 {[%clk 0:00:10]}  Kg7 {[%clk 0:00:13]} 59. Rb6 {[%clk 0:00:10]}  Kh7 {[%clk 0:00:13]} 60. g4 {[%clk 0:00:10]}  Kg7 {[%clk 0:00:12]} 61. Kg3 {[%clk 0:00:10]}  Rd4 {[%clk 0:00:11]} 62. Rc6 {[%clk 0:00:09]}  Kh7 {[%clk 0:00:10]} 63. Kh4 {[%clk 0:00:09]}  Rd5 {[%clk 0:00:08]} 64. Rf6 {[%clk 0:00:09]}  Kg7 {[%clk 0:00:07]} 65. Rf5 {[%clk 0:00:09]}  Rd4 {[%clk 0:00:06]} 66. Kg5 {[%clk 0:00:09]}  Kh7 {[%clk 0:00:06]} 67. Rf7+ {[%clk 0:00:09]}  Kg8 {[%clk 0:00:05]} 68. Rf6 {[%clk 0:00:09]}  Kg7 {[%clk 0:00:02]} 69. Rf5 {[%clk 0:00:08]}  Kh7 {[%clk 0:00:01]} 70. h6 {[%clk 0:00:07]} 1-0


[Site "https://www.chess.com"]

[Event "Titled Tuesday Blitz March 08 Late 2022"]
[White "Derraugh, Geordie"]
[Black "Sarkar, Justin"]
[WhiteFideId "2603950"]
[BlackFideId "2010011"]
[WhiteElo "2116"]
[BlackElo "2038"]
[Result "0-1"]
[Round "10"]
[TimeControl "180+1"]
[Date "2022.03.09"]
[WhiteClock "0:00:05"]
[BlackClock "0:00:05"]

1. e4 {[%clk 0:03:00]}  Nf6 {[%clk 0:02:54]} 2. e5 {[%clk 0:02:59]}  Ne4 {[%clk 0:02:53]} 3. d3 {[%clk 0:02:59]}  Nc5 {[%clk 0:02:52]} 4. d4 {[%clk 0:02:56]}  Ne6 {[%clk 0:02:50]} 5. f4 {[%clk 0:02:54]}  g6 {[%clk 0:02:45]} 6. Nf3 {[%clk 0:02:48]}  d6 {[%clk 0:02:41]} 7. d5 {[%clk 0:02:41]}  Nc5 {[%clk 0:02:38]} 8. Be3 {[%clk 0:02:40]}  Bg7 {[%clk 0:02:33]} 9. Nc3 {[%clk 0:02:22]}  O-O {[%clk 0:02:24]} 10. Qd2 {[%clk 0:02:21]}  c6 {[%clk 0:02:14]} 11. dxc6 {[%clk 0:02:17]}  Nxc6 {[%clk 0:02:11]} 12. O-O-O {[%clk 0:02:18]}  Bg4 {[%clk 0:02:04]} 13. Qf2 {[%clk 0:02:01]}  Qa5 {[%clk 0:01:48]} 14. Bxc5 {[%clk 0:01:44]}  dxc5 {[%clk 0:01:43]} 15. Bc4 {[%clk 0:01:38]}  Nd4 {[%clk 0:01:26]} 16. Bd5 {[%clk 0:01:34]}  Rad8 {[%clk 0:01:06]} 17. Nxd4 {[%clk 0:01:29]}  cxd4 {[%clk 0:00:33]} 18. Rxd4 {[%clk 0:01:29]}  Qc5 {[%clk 0:00:24]} 19. h3 {[%clk 0:00:52]}  Be6 {[%clk 0:00:20]} 20. Rhd1 {[%clk 0:00:51]}  Bxd5 {[%clk 0:00:19]} 21. Nxd5 {[%clk 0:00:50]}  Rxd5 {[%clk 0:00:19]} 22. c3 {[%clk 0:00:39]}  Rxd4 {[%clk 0:00:18]} 23. Rxd4 {[%clk 0:00:40]}  h5 {[%clk 0:00:14]} 24. g4 {[%clk 0:00:39]}  hxg4 {[%clk 0:00:12]} 25. hxg4 {[%clk 0:00:40]}  g5 {[%clk 0:00:11]} 26. Qe2 {[%clk 0:00:16]}  gxf4 {[%clk 0:00:10]} 27. Re4 {[%clk 0:00:16]}  f3 {[%clk 0:00:09]} 28. Qxf3 {[%clk 0:00:15]}  Bxe5 {[%clk 0:00:08]} 29. Qf5 {[%clk 0:00:16]}  Rd8 {[%clk 0:00:03]} 30. Qg5+ {[%clk 0:00:13]}  Kf8 {[%clk 0:00:03]} 31. Qxe5 {[%clk 0:00:14]}  Qxe5 {[%clk 0:00:01]} 32. Rxe5 {[%clk 0:00:14]}  Rd3 {[%clk 0:00:01]} 33. Kc2 {[%clk 0:00:13]}  Rg3 {[%clk 0:00:01]} 34. g5 {[%clk 0:00:14]}  f6 {[%clk 0:00:01]} 35. gxf6 {[%clk 0:00:15]}  exf6 {[%clk 0:00:02]} 36. Rb5 {[%clk 0:00:16]}  b6 {[%clk 0:00:01]} 37. Rf5 {[%clk 0:00:16]}  Kf7 {[%clk 0:00:01]} 38. a4 {[%clk 0:00:17]}  Ke6 {[%clk 0:00:02]} 39. Rb5 {[%clk 0:00:16]}  f5 {[%clk 0:00:02]} 40. a5 {[%clk 0:00:17]}  bxa5 {[%clk 0:00:02]} 41. Rxa5 {[%clk 0:00:18]}  f4 {[%clk 0:00:02]} 42. Rxa7 {[%clk 0:00:18]}  Rg2+ {[%clk 0:00:03]} 43. Kb3 {[%clk 0:00:17]}  f3 {[%clk 0:00:03]} 44. Ra8 {[%clk 0:00:15]}  f2 {[%clk 0:00:03]} 45. Rf8 {[%clk 0:00:15]}  Ke5 {[%clk 0:00:03]} 46. Kc4 {[%clk 0:00:14]}  Ke4 {[%clk 0:00:03]} 47. b4 {[%clk 0:00:14]}  Ke3 {[%clk 0:00:03]} 48. Kb5 {[%clk 0:00:11]}  Rg3 {[%clk 0:00:03]} 49. Rxf2 {[%clk 0:00:10]}  Kxf2 {[%clk 0:00:03]} 50. c4 {[%clk 0:00:10]}  Ke3 {[%clk 0:00:04]} 51. c5 {[%clk 0:00:11]}  Kd4 {[%clk 0:00:04]} 52. c6 {[%clk 0:00:11]}  Rg8 {[%clk 0:00:03]} 53. c7 {[%clk 0:00:09]}  Kd5 {[%clk 0:00:03]} 54. Kb6 {[%clk 0:00:10]}  Kd6 {[%clk 0:00:03]} 55. Kb7 {[%clk 0:00:09]}  Rg7 {[%clk 0:00:03]} 56. b5 {[%clk 0:00:07]}  Rxc7+ {[%clk 0:00:04]} 57. Ka6 {[%clk 0:00:06]}  Rc1 {[%clk 0:00:04]} 58. b6 {[%clk 0:00:06]}  Kc6 {[%clk 0:00:04]} 59. Ka7 {[%clk 0:00:05]}  Ra1+ {[%clk 0:00:05]} 60. Kb8 {[%clk 0:00:05]}  Kxb6 {[%clk 0:00:05]} 0-1


[Site "https://www.chess.com"]

[Event "Titled Tuesday Blitz March 08 Late 2022"]
[White "Domingo Nunez, Alejandro"]
[Black "Kosakowski, Jakub"]
[WhiteFideId "22245561"]
[BlackFideId "1185080"]
[WhiteElo "2215"]
[BlackElo "2476"]
[Result "1-0"]
[Round "10"]
[TimeControl "180+1"]
[Date "2022.03.08"]
[WhiteClock "0:00:40"]
[BlackClock "0:00:05"]

1. Nf3 {[%clk 0:03:00]}  d5 {[%clk 0:02:58]} 2. g3 {[%clk 0:03:00]}  Nd7 {[%clk 0:02:58]} 3. d4 {[%clk 0:03:00]}  Nb6 {[%clk 0:02:58]} 4. a4 {[%clk 0:03:01]}  a5 {[%clk 0:02:57]} 5. Qd3 {[%clk 0:03:01]}  g6 {[%clk 0:02:49]} 6. b3 {[%clk 0:03:00]}  Bf5 {[%clk 0:02:48]} 7. Qe3 {[%clk 0:03:00]}  Bh6 {[%clk 0:02:43]} 8. Ng5 {[%clk 0:02:56]}  f6 {[%clk 0:02:42]} 9. h4 {[%clk 0:02:53]}  Qd7 {[%clk 0:02:04]} 10. Na3 {[%clk 0:02:10]}  O-O-O {[%clk 0:01:44]} 11. Qc3 {[%clk 0:02:04]}  fxg5 {[%clk 0:01:41]} 12. hxg5 {[%clk 0:02:05]}  Bg7 {[%clk 0:01:41]} 13. Qxa5 {[%clk 0:02:05]}  Bxd4 {[%clk 0:01:38]} 14. c3 {[%clk 0:02:05]}  Bg7 {[%clk 0:01:33]} 15. Be3 {[%clk 0:02:02]}  d4 {[%clk 0:01:29]} 16. Bxd4 {[%clk 0:01:22]}  Bxd4 {[%clk 0:01:27]} 17. Bg2 {[%clk 0:01:21]}  Bc5 {[%clk 0:00:54]} 18. Nc4 {[%clk 0:01:14]}  Kb8 {[%clk 0:00:32]} 19. Qxc5 {[%clk 0:01:00]}  Nxc4 {[%clk 0:00:33]} 20. O-O {[%clk 0:00:59]}  Nd6 {[%clk 0:00:26]} 21. Rfd1 {[%clk 0:00:44]}  e5 {[%clk 0:00:22]} 22. a5 {[%clk 0:00:40]}  Ne7 {[%clk 0:00:06]} 23. a6 {[%clk 0:00:40]}  Qb5 {[%clk 0:00:06]} 24. axb7 {[%clk 0:00:40]}  Nxb7 {[%clk 0:00:05]} 25. Qxb5 {[%clk 0:00:40]} 1-0


[Site "https://www.chess.com"]

[Event "Titled Tuesday Blitz March 08 Late 2022"]
[White "Elissalt Cardenas, Hector"]
[Black "Kozina, Anastasia"]
[WhiteFideId "3500632"]
[BlackFideId "24174017"]
[WhiteElo "2159"]
[BlackElo "1993"]
[Result "1-0"]
[Round "10"]
[TimeControl "180+1"]
[Date "2022.03.09"]
[WhiteClock "0:00:34"]
[BlackClock "0:00:55"]

1. d4 {[%clk 0:03:00]}  e6 {[%clk 0:03:00]} 2. c4 {[%clk 0:02:57]}  Nf6 {[%clk 0:03:00]} 3. Nc3 {[%clk 0:02:56]}  Bb4 {[%clk 0:02:59]} 4. e3 {[%clk 0:02:51]}  O-O {[%clk 0:02:58]} 5. Bd3 {[%clk 0:02:45]}  b6 {[%clk 0:02:55]} 6. Ne2 {[%clk 0:02:36]}  Bb7 {[%clk 0:02:55]} 7. O-O {[%clk 0:02:29]}  d5 {[%clk 0:02:55]} 8. cxd5 {[%clk 0:02:22]}  exd5 {[%clk 0:02:54]} 9. Bd2 {[%clk 0:02:15]}  Nbd7 {[%clk 0:02:53]} 10. Rc1 {[%clk 0:02:10]}  a6 {[%clk 0:02:50]} 11. f3 {[%clk 0:01:59]}  Re8 {[%clk 0:02:46]} 12. Ng3 {[%clk 0:01:57]}  Nf8 {[%clk 0:02:38]} 13. a3 {[%clk 0:01:51]}  Bd6 {[%clk 0:02:37]} 14. Nf5 {[%clk 0:01:51]}  c5 {[%clk 0:02:27]} 15. Nxd6 {[%clk 0:01:49]}  Qxd6 {[%clk 0:02:27]} 16. Ne2 {[%clk 0:01:43]}  Ne6 {[%clk 0:02:18]} 17. Be1 {[%clk 0:01:37]}  c4 {[%clk 0:02:11]} 18. Bc2 {[%clk 0:01:32]}  Nf8 {[%clk 0:02:03]} 19. Qd2 {[%clk 0:01:25]}  Qe6 {[%clk 0:02:00]} 20. Bf2 {[%clk 0:01:21]}  a5 {[%clk 0:01:55]} 21. Nc3 {[%clk 0:01:17]}  Ba6 {[%clk 0:01:51]} 22. e4 {[%clk 0:01:10]}  b5 {[%clk 0:01:47]} 23. exd5 {[%clk 0:00:56]}  Nxd5 {[%clk 0:01:46]} 24. Nxd5 {[%clk 0:00:56]}  Qxd5 {[%clk 0:01:45]} 25. Be4 {[%clk 0:00:53]}  Rxe4 {[%clk 0:01:45]} 26. fxe4 {[%clk 0:00:53]}  Qxe4 {[%clk 0:01:45]} 27. Rce1 {[%clk 0:00:53]}  Qd5 {[%clk 0:01:41]} 28. Re5 {[%clk 0:00:52]}  Qc6 {[%clk 0:01:39]} 29. d5 {[%clk 0:00:49]}  Qd6 {[%clk 0:01:38]} 30. Bg3 {[%clk 0:00:47]}  Qb6+ {[%clk 0:01:36]} 31. Kh1 {[%clk 0:00:46]}  Ng6 {[%clk 0:01:32]} 32. Re4 {[%clk 0:00:41]}  Bb7 {[%clk 0:01:30]} 33. Rfe1 {[%clk 0:00:40]}  h6 {[%clk 0:01:26]} 34. Re8+ {[%clk 0:00:40]}  Rxe8 {[%clk 0:01:26]} 35. Rxe8+ {[%clk 0:00:40]}  Kh7 {[%clk 0:01:26]} 36. d6 {[%clk 0:00:41]}  Bc6 {[%clk 0:01:07]} 37. d7 {[%clk 0:00:41]}  Bxd7 {[%clk 0:01:02]} 38. Qxd7 {[%clk 0:00:40]}  Qf6 {[%clk 0:01:02]} 39. h3 {[%clk 0:00:39]}  Qxb2 {[%clk 0:00:55]} 40. Qxf7 {[%clk 0:00:35]}  Qxa3 {[%clk 0:00:55]} 41. Qg8# {[%clk 0:00:34]} 1-0


[Site "https://www.chess.com"]

[Event "Titled Tuesday Blitz March 08 Late 2022"]
[White "Golubev, Mikhail"]
[Black "Moral Garcia, Serafin"]
[WhiteFideId "14100983"]
[BlackFideId "2201925"]
[WhiteElo "2374"]
[BlackElo "2228"]
[Result "1-0"]
[Round "10"]
[TimeControl "180+1"]
[Date "2022.03.09"]
[WhiteClock "0:00:05"]
[BlackClock "0:01:08"]

1. d4 {[%clk 0:03:00]}  Nf6 {[%clk 0:02:59]} 2. c4 {[%clk 0:03:00]}  g6 {[%clk 0:02:59]} 3. Nc3 {[%clk 0:03:00]}  d5 {[%clk 0:02:59]} 4. cxd5 {[%clk 0:02:55]}  Nxd5 {[%clk 0:02:59]} 5. Na4 {[%clk 0:02:54]}  Bg7 {[%clk 0:02:58]} 6. e4 {[%clk 0:02:51]}  Nb6 {[%clk 0:02:57]} 7. Be3 {[%clk 0:02:51]}  O-O {[%clk 0:02:54]} 8. Nf3 {[%clk 0:02:42]}  Bg4 {[%clk 0:02:51]} 9. Be2 {[%clk 0:02:34]}  Nc6 {[%clk 0:02:44]} 10. d5 {[%clk 0:02:23]}  Bxf3 {[%clk 0:02:44]} 11. gxf3 {[%clk 0:02:18]}  Nxa4 {[%clk 0:02:33]} 12. Qxa4 {[%clk 0:02:17]}  Ne5 {[%clk 0:02:28]} 13. f4 {[%clk 0:02:03]}  Nd7 {[%clk 0:02:28]} 14. O-O-O {[%clk 0:02:04]}  Nb6 {[%clk 0:02:22]} 15. Qb3 {[%clk 0:01:53]}  Qd7 {[%clk 0:02:21]} 16. Kb1 {[%clk 0:01:50]}  e6 {[%clk 0:02:15]} 17. dxe6 {[%clk 0:01:48]}  Qxe6 {[%clk 0:02:15]} 18. Qxe6 {[%clk 0:01:47]}  fxe6 {[%clk 0:02:15]} 19. h4 {[%clk 0:01:32]}  Rad8 {[%clk 0:02:09]} 20. Rxd8 {[%clk 0:01:19]}  Rxd8 {[%clk 0:02:08]} 21. h5 {[%clk 0:01:20]}  Bd4 {[%clk 0:02:00]} 22. hxg6 {[%clk 0:01:14]}  hxg6 {[%clk 0:02:00]} 23. Bg4 {[%clk 0:01:10]}  Bxe3 {[%clk 0:01:57]} 24. Bxe6+ {[%clk 0:01:07]}  Kg7 {[%clk 0:01:56]} 25. fxe3 {[%clk 0:01:08]}  Rd3 {[%clk 0:01:47]} 26. Re1 {[%clk 0:00:57]}  Kf6 {[%clk 0:01:46]} 27. Kc2 {[%clk 0:00:52]}  Rd8 {[%clk 0:01:44]} 28. Bb3 {[%clk 0:00:49]}  c5 {[%clk 0:01:39]} 29. e5+ {[%clk 0:00:47]}  Kf5 {[%clk 0:01:38]} 30. Kc3 {[%clk 0:00:41]}  Ke4 {[%clk 0:01:34]} 31. Bc2+ {[%clk 0:00:37]}  Kf3 {[%clk 0:01:34]} 32. Bxg6 {[%clk 0:00:19]}  Nd5+ {[%clk 0:01:33]} 33. Kb3 {[%clk 0:00:16]}  c4+ {[%clk 0:01:26]} 34. Ka3 {[%clk 0:00:14]}  Nxe3 {[%clk 0:01:26]} 35. e6 {[%clk 0:00:11]}  c3 {[%clk 0:01:12]} 36. Rxe3+ {[%clk 0:00:06]}  Kxe3 {[%clk 0:01:11]} 37. bxc3 {[%clk 0:00:07]}  Rd6 {[%clk 0:01:06]} 38. e7 {[%clk 0:00:07]}  Ra6+ {[%clk 0:01:07]} 39. Kb2 {[%clk 0:00:06]}  Rxg6 {[%clk 0:01:08]} 40. e8=Q+ {[%clk 0:00:05]} 1-0


[Site "https://www.chess.com"]

[Event "Titled Tuesday Blitz March 08 Late 2022"]
[White "Hambleton, Aman"]
[Black "Li, Ben"]
[WhiteFideId "2606577"]
[BlackFideId "2089980"]
[WhiteElo "2552"]
[BlackElo "2267"]
[Result "0-1"]
[Round "10"]
[TimeControl "180+1"]
[Date "2022.03.08"]
[WhiteClock "0:00:01"]
[BlackClock "0:01:11"]

1. d4 {[%clk 0:02:56]}  d5 {[%clk 0:02:59]} 2. Bf4 {[%clk 0:02:56]}  Nf6 {[%clk 0:03:00]} 3. e3 {[%clk 0:02:57]}  c5 {[%clk 0:03:00]} 4. c3 {[%clk 0:02:57]}  Nc6 {[%clk 0:03:00]} 5. Nd2 {[%clk 0:02:58]}  e6 {[%clk 0:03:01]} 6. Ngf3 {[%clk 0:02:58]}  Bd6 {[%clk 0:03:01]} 7. Bg3 {[%clk 0:02:58]}  O-O {[%clk 0:03:02]} 8. Bd3 {[%clk 0:02:59]}  b6 {[%clk 0:03:01]} 9. e4 {[%clk 0:02:59]}  Be7 {[%clk 0:03:02]} 10. e5 {[%clk 0:02:59]}  Nh5 {[%clk 0:03:02]} 11. Ng5 {[%clk 0:02:58]}  Bxg5 {[%clk 0:03:03]} 12. Qxh5 {[%clk 0:02:58]}  g6 {[%clk 0:03:04]} 13. Qe2 {[%clk 0:02:57]}  cxd4 {[%clk 0:03:04]} 14. h4 {[%clk 0:02:57]}  Bh6 {[%clk 0:03:05]} 15. h5 {[%clk 0:02:57]}  dxc3 {[%clk 0:03:06]} 16. bxc3 {[%clk 0:02:57]}  Bg7 {[%clk 0:03:06]} 17. Nf3 {[%clk 0:02:34]}  Qc7 {[%clk 0:03:02]} 18. O-O {[%clk 0:02:13]}  Ne7 {[%clk 0:02:43]} 19. Rac1 {[%clk 0:01:58]}  Bd7 {[%clk 0:02:33]} 20. Bf4 {[%clk 0:00:51]}  Rfc8 {[%clk 0:02:27]} 21. h6 {[%clk 0:00:42]}  Bf8 {[%clk 0:02:27]} 22. Nh2 {[%clk 0:00:38]}  Nf5 {[%clk 0:02:20]} 23. Ng4 {[%clk 0:00:32]}  Be7 {[%clk 0:02:11]} 24. Qd2 {[%clk 0:00:32]}  Qd8 {[%clk 0:02:08]} 25. Rfe1 {[%clk 0:00:28]}  Rc7 {[%clk 0:01:55]} 26. Bb1 {[%clk 0:00:20]}  Rac8 {[%clk 0:01:54]} 27. Qd3 {[%clk 0:00:11]}  Rc4 {[%clk 0:01:52]} 28. Qf3 {[%clk 0:00:06]}  d4 {[%clk 0:01:50]} 29. Bxf5 {[%clk 0:00:03]}  exf5 {[%clk 0:01:47]} 30. Nf6+ {[%clk 0:00:03]}  Bxf6 {[%clk 0:01:23]} 31. exf6 {[%clk 0:00:03]}  Rxc3 {[%clk 0:01:21]} 32. Qd5 {[%clk 0:00:02]}  Be6 {[%clk 0:01:19]} 33. Qe5 {[%clk 0:00:01]}  R3c5 {[%clk 0:01:11]} 34. Qe2 {[%clk 0:00:01]}  d3 {[%clk 0:01:11]} 0-1


[Site "https://www.chess.com"]

[Event "Titled Tuesday Blitz March 08 Late 2022"]
[White "Hryshchenko, Kamila"]
[Black "Bluebaum, Matthias"]
[WhiteFideId "14147491"]
[BlackFideId "24651516"]
[WhiteElo "1929"]
[BlackElo "2550"]
[Result "1-0"]
[Round "10"]
[TimeControl "180+1"]
[Date "2022.03.08"]
[WhiteClock "0:00:53"]
[BlackClock "0:00:01"]

1. e4 {[%clk 0:03:00]}  c6 {[%clk 0:03:00]} 2. Ne2 {[%clk 0:03:00]}  d5 {[%clk 0:03:00]} 3. d4 {[%clk 0:03:01]}  dxe4 {[%clk 0:03:00]} 4. Nbc3 {[%clk 0:03:01]}  Nf6 {[%clk 0:02:57]} 5. Ng3 {[%clk 0:03:02]}  Bg4 {[%clk 0:02:48]} 6. Be2 {[%clk 0:03:02]}  Bxe2 {[%clk 0:02:48]} 7. Qxe2 {[%clk 0:03:03]}  Qxd4 {[%clk 0:02:47]} 8. Bf4 {[%clk 0:03:03]}  Nd5 {[%clk 0:02:37]} 9. Nxd5 {[%clk 0:02:58]}  Qxd5 {[%clk 0:02:32]} 10. Nxe4 {[%clk 0:02:54]}  e5 {[%clk 0:02:14]} 11. Nc3 {[%clk 0:02:54]}  Qe6 {[%clk 0:02:13]} 12. Qxe5 {[%clk 0:02:41]}  Qxe5+ {[%clk 0:02:13]} 13. Bxe5 {[%clk 0:02:42]}  Nd7 {[%clk 0:02:13]} 14. Bc7 {[%clk 0:02:42]}  Nc5 {[%clk 0:01:40]} 15. O-O-O {[%clk 0:02:41]}  Ne6 {[%clk 0:01:41]} 16. Rhe1 {[%clk 0:02:39]}  Be7 {[%clk 0:01:41]} 17. Be5 {[%clk 0:02:37]}  Rd8 {[%clk 0:01:39]} 18. Ne4 {[%clk 0:02:36]}  f6 {[%clk 0:01:23]} 19. Bd6 {[%clk 0:02:25]}  f5 {[%clk 0:01:05]} 20. Bxe7 {[%clk 0:01:50]}  Rxd1+ {[%clk 0:01:06]} 21. Kxd1 {[%clk 0:01:50]}  fxe4 {[%clk 0:01:03]} 22. Bh4 {[%clk 0:01:50]}  Kf7 {[%clk 0:01:00]} 23. Rxe4 {[%clk 0:01:50]}  g5 {[%clk 0:01:01]} 24. Bg3 {[%clk 0:01:50]}  Rd8+ {[%clk 0:01:01]} 25. Kc1 {[%clk 0:01:49]}  h5 {[%clk 0:00:58]} 26. h4 {[%clk 0:01:43]}  gxh4 {[%clk 0:00:53]} 27. Rxh4 {[%clk 0:01:42]}  Kg6 {[%clk 0:00:50]} 28. c3 {[%clk 0:01:39]}  Ng7 {[%clk 0:00:46]} 29. Rh3 {[%clk 0:01:36]}  Re8 {[%clk 0:00:40]} 30. Kd2 {[%clk 0:01:36]}  Rd8+ {[%clk 0:00:38]} 31. Ke2 {[%clk 0:01:36]}  Re8+ {[%clk 0:00:38]} 32. Kd2 {[%clk 0:01:36]}  Rd8+ {[%clk 0:00:38]} 33. Ke1 {[%clk 0:01:37]}  Re8+ {[%clk 0:00:38]} 34. Kf1 {[%clk 0:01:37]}  Rd8 {[%clk 0:00:35]} 35. Be5 {[%clk 0:01:37]}  Nf5 {[%clk 0:00:31]} 36. Ke2 {[%clk 0:01:34]}  Kg5 {[%clk 0:00:30]} 37. Rd3 {[%clk 0:01:20]}  Re8 {[%clk 0:00:29]} 38. f4+ {[%clk 0:01:18]}  Kg4 {[%clk 0:00:30]} 39. Rd7 {[%clk 0:01:18]}  Re7 {[%clk 0:00:24]} 40. Rd8 {[%clk 0:01:12]}  Nh6 {[%clk 0:00:10]} 41. Kf2 {[%clk 0:01:12]}  Nf7 {[%clk 0:00:09]} 42. Rg8+ {[%clk 0:01:10]}  Kf5 {[%clk 0:00:10]} 43. Rg7 {[%clk 0:01:02]}  Rc7 {[%clk 0:00:10]} 44. Bxc7 {[%clk 0:01:00]}  Nh6 {[%clk 0:00:10]} 45. Kf3 {[%clk 0:00:58]}  Ng4 {[%clk 0:00:10]} 46. Rxg4 {[%clk 0:00:58]}  hxg4+ {[%clk 0:00:11]} 47. Kg3 {[%clk 0:00:58]}  a6 {[%clk 0:00:11]} 48. a4 {[%clk 0:00:58]}  b5 {[%clk 0:00:12]} 49. a5 {[%clk 0:00:58]}  b4 {[%clk 0:00:12]} 50. cxb4 {[%clk 0:00:58]}  Ke4 {[%clk 0:00:13]} 51. Kxg4 {[%clk 0:00:58]}  Kd3 {[%clk 0:00:14]} 52. f5 {[%clk 0:00:59]}  Kc4 {[%clk 0:00:15]} 53. f6 {[%clk 0:00:59]}  Kb3 {[%clk 0:00:16]} 54. f7 {[%clk 0:01:00]}  c5 {[%clk 0:00:16]} 55. f8=Q {[%clk 0:01:01]}  cxb4 {[%clk 0:00:17]} 56. Bd6 {[%clk 0:00:59]}  Ka4 {[%clk 0:00:18]} 57. Bxb4 {[%clk 0:01:00]}  Kb3 {[%clk 0:00:18]} 58. Qf7+ {[%clk 0:01:00]}  Ka4 {[%clk 0:00:18]} 59. Qa2+ {[%clk 0:00:57]}  Kb5 {[%clk 0:00:18]} 60. b3 {[%clk 0:00:57]}  Kc6 {[%clk 0:00:16]} 61. Qc2+ {[%clk 0:00:56]}  Kd5 {[%clk 0:00:15]} 62. Kf5 {[%clk 0:00:55]}  Kd4 {[%clk 0:00:14]} 63. Bc5+ {[%clk 0:00:55]}  Kd5 {[%clk 0:00:14]} 64. Qc4+ {[%clk 0:00:56]}  Kc6 {[%clk 0:00:15]} 65. Be7+ {[%clk 0:00:54]}  Kd7 {[%clk 0:00:15]} 66. Qe6+ {[%clk 0:00:55]}  Kc7 {[%clk 0:00:15]} 67. Qd6+ {[%clk 0:00:52]}  Kb7 {[%clk 0:00:16]} 68. Qd7+ {[%clk 0:00:52]}  Ka8 {[%clk 0:00:16]} 69. Qc8+ {[%clk 0:00:52]}  Ka7 {[%clk 0:00:01]} 70. Bc5# {[%clk 0:00:53]} 1-0


[Site "https://www.chess.com"]